[Event "Betsys MČR v online bleskovém šachu 2021"]
[Site "Chess.com"]
[Date "2021.04.17"]
[Round "4"]
[White "DrStillestein"]
[Black "Maldaj"]
[Result "0-1"]
[WhiteElo "2116"]
[BlackElo "2411"]
[TimeControl "180+1"]
[EndTime "9:36:48 PDT"]
[Termination "Uživatel Maldaj zvítězil matem"]

1. c4 {[%clk 0:03:00.9]} 1... e6 {[%clk 0:02:59.7]} 2. Nc3 {[%clk 0:03:00.3]}
2... d5 {[%clk 0:03:00.4]} 3. cxd5 {[%clk 0:03:00.4]} 3... exd5 {[%clk
0:03:00.5]} 4. d4 {[%clk 0:03:01]} 4... c6 {[%clk 0:02:59.5]} 5. Nf3 {[%clk
0:02:59.6]} 5... Bf5 {[%clk 0:02:56.9]} 6. Bf4 {[%clk 0:02:57.6]} 6... Bd6
{[%clk 0:02:56.5]} 7. Bxd6 {[%clk 0:02:57.2]} 7... Qxd6 {[%clk 0:02:57.4]} 8. e3
{[%clk 0:02:57.5]} 8... Nf6 {[%clk 0:02:56.9]} 9. Bd3 {[%clk 0:02:57.1]} 9...
Bxd3 {[%clk 0:02:57.2]} 10. Qxd3 {[%clk 0:02:58]} 10... Nbd7 {[%clk 0:02:57.5]}
11. O-O {[%clk 0:02:57.8]} 11... O-O {[%clk 0:02:57.5]} 12. Rfe1 {[%clk
0:02:56.5]} 12... Rfe8 {[%clk 0:02:57.3]} 13. a3 {[%clk 0:02:50.6]} 13... a5
{[%clk 0:02:57]} 14. Rac1 {[%clk 0:02:42.1]} 14... Ne4 {[%clk 0:02:56.4]} 15.
Nd2 {[%clk 0:02:38.8]} 15... f5 {[%clk 0:02:52.2]} 16. Ndxe4 {[%clk 0:02:21.1]}
16... fxe4 {[%clk 0:02:51.7]} 17. Qe2 {[%clk 0:02:17.9]} 17... Nf6 {[%clk
0:02:51.2]} 18. Na4 {[%clk 0:02:16.4]} 18... Rf8 {[%clk 0:02:47.4]} 19. Rc5
{[%clk 0:02:09.2]} 19... Nd7 {[%clk 0:02:31.3]} 20. Rc2 {[%clk 0:02:07.5]} 20...
Rf6 {[%clk 0:02:31.5]} 21. Nc5 {[%clk 0:02:05.7]} 21... Rh6 {[%clk 0:02:21.8]}
22. g3 {[%clk 0:02:02.4]} 22... Nxc5 {[%clk 0:02:16.2]} 23. Rxc5 {[%clk
0:01:56.3]} 23... Qe6 {[%clk 0:02:07.6]} 24. Qf1 {[%clk 0:01:52]} 24... Rf6
{[%clk 0:02:02.4]} 25. Re2 {[%clk 0:01:47.3]} 25... b6 {[%clk 0:01:58.4]} 26.
Rc3 {[%clk 0:01:45.8]} 26... Raf8 {[%clk 0:01:58.8]} 27. Qg2 {[%clk 0:01:32.5]}
27... Rf3 {[%clk 0:01:57.1]} 28. Rec2 {[%clk 0:01:31.1]} 28... Qg4 {[%clk
0:01:47.6]} 29. Rxc6 {[%clk 0:01:26.7]} 29... Rxe3 {[%clk 0:01:42.7]} 30. Rc1
{[%clk 0:01:09.2]} 30... Rd3 {[%clk 0:01:38.5]} 31. h3 {[%clk 0:00:55.1]} 31...
Qe2 {[%clk 0:01:31.9]} 32. Qf1 {[%clk 0:00:51.5]} 32... Rxg3+ {[%clk 0:01:16.3]}
33. fxg3 {[%clk 0:00:44.8]} 33... Rxf1+ {[%clk 0:01:16.1]} 34. Rxf1 {[%clk
0:00:44.8]} 34... h5 {[%clk 0:01:13.8]} 35. Rc8+ {[%clk 0:00:43.8]} 35... Kh7
{[%clk 0:01:12.6]} 36. Rff8 {[%clk 0:00:25.3]} 36... Qe3+ {[%clk 0:01:04.3]} 37.
Kg2 {[%clk 0:00:25.1]} 37... Qxd4 {[%clk 0:00:58.1]} 38. Rh8+ {[%clk 0:00:24.3]}
38... Kg6 {[%clk 0:00:58.2]} 39. Rc6+ {[%clk 0:00:22.5]} 39... Kf7 {[%clk
0:00:58.2]} 40. Rhc8 {[%clk 0:00:20.7]} 40... e3 {[%clk 0:00:51]} 41. R8c7+
{[%clk 0:00:20.4]} 41... Kg8 {[%clk 0:00:50]} 42. Rc8+ {[%clk 0:00:20.5]} 42...
Kh7 {[%clk 0:00:50]} 43. Re6 {[%clk 0:00:18.3]} 43... Qd2+ {[%clk 0:00:47.9]}
44. Kf3 {[%clk 0:00:18.2]} 44... Qf2# {[%clk 0:00:46.8]} 0-1

[Event "Betsys MČR v online bleskovém šachu 2021"]
[Site "Chess.com"]
[Date "2021.04.17"]
[Round "4"]
[White "svTomas"]
[Black "rakintsev"]
[Result "1-0"]
[WhiteElo "1426"]
[BlackElo "1758"]
[TimeControl "180+1"]
[EndTime "9:36:51 PDT"]
[Termination "Uživatel svTomas zvítězil matem"]

1. e4 {[%clk 0:03:00.9]} 1... c6 {[%clk 0:02:57.9]} 2. Nf3 {[%clk 0:02:55]} 2...
d5 {[%clk 0:02:57.7]} 3. exd5 {[%clk 0:02:55.1]} 3... cxd5 {[%clk 0:02:57.6]} 4.
d4 {[%clk 0:02:54.9]} 4... Bg4 {[%clk 0:02:57.1]} 5. Be2 {[%clk 0:02:54.4]} 5...
Nf6 {[%clk 0:02:56.5]} 6. Nc3 {[%clk 0:02:53.3]} 6... e6 {[%clk 0:02:55.2]} 7.
Bd2 {[%clk 0:02:51.7]} 7... Be7 {[%clk 0:02:51.5]} 8. h3 {[%clk 0:02:48.7]} 8...
Bh5 {[%clk 0:02:48.7]} 9. g4 {[%clk 0:02:48.4]} 9... Bg6 {[%clk 0:02:48.1]} 10.
Ne5 {[%clk 0:02:47.2]} 10... Qb6 {[%clk 0:02:41.8]} 11. Na4 {[%clk 0:02:01.8]}
11... Qxd4 {[%clk 0:02:25.4]} 12. Bb5+ {[%clk 0:01:33.7]} 12... Kf8 {[%clk
0:02:19.9]} 13. Bc3 {[%clk 0:01:27.8]} 13... Qe4+ {[%clk 0:02:12.4]} 14. Kd2
{[%clk 0:01:18.8]} 14... Qf4+ {[%clk 0:01:53]} 15. Ke1 {[%clk 0:01:09.5]} 15...
Ne4 {[%clk 0:01:41.1]} 16. Qf3 {[%clk 0:01:00]} 16... Qxf3 {[%clk 0:01:20.3]}
17. Nxf3 {[%clk 0:00:59.4]} 17... a6 {[%clk 0:01:15.1]} 18. Bd3 {[%clk
0:00:49.6]} 18... b5 {[%clk 0:01:11.4]} 19. Nb6 {[%clk 0:00:49.1]} 19... Ra7
{[%clk 0:01:00.3]} 20. Bd4 {[%clk 0:00:48]} 20... Rb7 {[%clk 0:00:57.8]} 21. a4
{[%clk 0:00:47.4]} 21... Nc6 {[%clk 0:00:40.1]} 22. a5 {[%clk 0:00:45.3]} 22...
Nxd4 {[%clk 0:00:26.3]} 23. Nxd4 {[%clk 0:00:44.6]} 23... Bc5 {[%clk 0:00:24]}
24. Nc6 {[%clk 0:00:24.8]} 24... Bxb6 {[%clk 0:00:20]} 25. axb6 {[%clk
0:00:23.6]} 25... Rxb6 {[%clk 0:00:20.3]} 26. Bxb5 {[%clk 0:00:17.1]} 26... axb5
{[%clk 0:00:18.8]} 27. Ra8+ {[%clk 0:00:16.4]} 27... Rb8 {[%clk 0:00:08.5]} 28.
Rxb8# {[%clk 0:00:16]} 1-0

[Event "Betsys MČR v online bleskovém šachu 2021"]
[Site "Chess.com"]
[Date "2021.04.17"]
[Round "4"]
[White "keram91"]
[Black "dzerenyss"]
[Result "0-1"]
[WhiteElo "757"]
[BlackElo "1151"]
[TimeControl "180+1"]
[EndTime "9:36:52 PDT"]
[Termination "Uživatel dzerenyss zvítězil matem"]

1. d3 {[%clk 0:03:00.9]} 1... e5 {[%clk 0:02:56]} 2. e4 {[%clk 0:02:58.7]} 2...
Nf6 {[%clk 0:02:54.6]} 3. f3 {[%clk 0:02:57.3]} 3... Be7 {[%clk 0:02:47.3]} 4.
a3 {[%clk 0:02:54.5]} 4... O-O {[%clk 0:02:46.3]} 5. Be3 {[%clk 0:02:48.9]} 5...
Nc6 {[%clk 0:02:40.7]} 6. Nc3 {[%clk 0:02:48]} 6... d5 {[%clk 0:02:35.4]} 7.
exd5 {[%clk 0:02:45.6]} 7... Nxd5 {[%clk 0:02:33.5]} 8. Ne4 {[%clk 0:02:44.5]}
8... Nxe3 {[%clk 0:02:29.1]} 9. Qe2 {[%clk 0:02:39.7]} 9... Qd4 {[%clk
0:02:12.6]} 10. Rc1 {[%clk 0:02:14.9]} 10... Bf5 {[%clk 0:01:59.8]} 11. c3
{[%clk 0:02:14.1]} 11... Qb6 {[%clk 0:01:53.2]} 12. g4 {[%clk 0:02:08.1]} 12...
Bxe4 {[%clk 0:01:50.8]} 13. fxe4 {[%clk 0:02:07.7]} 13... Bc5 {[%clk 0:01:42.8]}
14. Nf3 {[%clk 0:02:05.2]} 14... Nxg4 {[%clk 0:01:35.2]} 15. d4 {[%clk
0:01:59.4]} 15... Bd6 {[%clk 0:01:25.3]} 16. Ng5 {[%clk 0:01:52.2]} 16... Nf6
{[%clk 0:01:19.9]} 17. Rg1 {[%clk 0:01:42.6]} 17... exd4 {[%clk 0:01:15.5]} 18.
Qg2 {[%clk 0:01:27.2]} 18... g6 {[%clk 0:01:08.4]} 19. Bc4 {[%clk 0:01:20]}
19... Ne7 {[%clk 0:00:53.3]} 20. Bxf7+ {[%clk 0:01:09.9]} 20... Rxf7 {[%clk
0:00:39.5]} 21. Qh3 {[%clk 0:01:05.1]} 21... Rg7 {[%clk 0:00:35.4]} 22. Ne6
{[%clk 0:01:01.5]} 22... Rf7 {[%clk 0:00:30.5]} 23. Rxg6+ {[%clk 0:00:57.5]}
23... hxg6 {[%clk 0:00:28.4]} 24. b4 {[%clk 0:00:45.1]} 24... Nxe4 {[%clk
0:00:27.8]} 25. Qh6 {[%clk 0:00:24.9]} 25... dxc3 {[%clk 0:00:25.9]} 26. Nf8
{[%clk 0:00:13.1]} 26... Qf2+ {[%clk 0:00:23.6]} 27. Kd1 {[%clk 0:00:12.1]}
27... Qf1+ {[%clk 0:00:14.7]} 28. Kc2 {[%clk 0:00:11.5]} 28... Qf2+ {[%clk
0:00:14.1]} 29. Kb1 {[%clk 0:00:10.3]} 29... Qb2# {[%clk 0:00:10.8]} 0-1

[Event "Betsys MČR v online bleskovém šachu 2021"]
[Site "Chess.com"]
[Date "2021.04.17"]
[Round "4"]
[White "kaprasov"]
[Black "Dvacetsekund"]
[Result "0-1"]
[WhiteElo "1889"]
[BlackElo "2196"]
[TimeControl "180+1"]
[EndTime "9:36:53 PDT"]
[Termination "Uživatel Dvacetsekund zvítězil na čas"]

1. d4 {[%clk 0:03:00.9]} 1... Nf6 {[%clk 0:02:57.1]} 2. Bf4 {[%clk 0:03:00.3]}
2... d5 {[%clk 0:02:56.4]} 3. e3 {[%clk 0:03:00.3]} 3... e6 {[%clk 0:02:57]} 4.
Nd2 {[%clk 0:03:00.1]} 4... Bd6 {[%clk 0:02:57.6]} 5. Bg3 {[%clk 0:02:59]} 5...
c5 {[%clk 0:02:57.1]} 6. c3 {[%clk 0:02:58.7]} 6... O-O {[%clk 0:02:55.7]} 7.
Ngf3 {[%clk 0:02:58.8]} 7... Nc6 {[%clk 0:02:55.6]} 8. Bd3 {[%clk 0:02:58.7]}
8... b6 {[%clk 0:02:54.9]} 9. e4 {[%clk 0:02:43.4]} 9... Be7 {[%clk 0:02:50.8]}
10. e5 {[%clk 0:02:41.2]} 10... Nh5 {[%clk 0:02:50]} 11. a3 {[%clk 0:02:41.6]}
11... g6 {[%clk 0:02:46.1]} 12. Qe2 {[%clk 0:02:39.6]} 12... a5 {[%clk 0:02:41]}
13. Nf1 {[%clk 0:02:28.8]} 13... f5 {[%clk 0:02:02.8]} 14. exf6 {[%clk
0:02:03.1]} 14... Bxf6 {[%clk 0:02:01.1]} 15. Be5 {[%clk 0:02:03.2]} 15... Bxe5
{[%clk 0:01:51.5]} 16. Nxe5 {[%clk 0:02:00.7]} 16... Nf4 {[%clk 0:01:26.8]} 17.
Nxc6 {[%clk 0:01:47.6]} 17... Qd6 {[%clk 0:01:22.7]} 18. Qd2 {[%clk 0:01:08.7]}
18... Qxc6 {[%clk 0:01:02.1]} 19. Ne3 {[%clk 0:00:59.7]} 19... cxd4 {[%clk
0:00:54.2]} 20. cxd4 {[%clk 0:00:55.6]} 20... Nxd3+ {[%clk 0:00:49.2]} 21. Qxd3
{[%clk 0:00:55.8]} 21... Ba6 {[%clk 0:00:48.7]} 22. Qc2 {[%clk 0:00:26.6]} 22...
Qb5 {[%clk 0:00:44.2]} 23. Qd2 {[%clk 0:00:13]} 23... Rac8 {[%clk 0:00:41.6]}
24. Nd1 {[%clk 0:00:12.6]} 24... e5 {[%clk 0:00:32.2]} 25. Nc3 {[%clk
0:00:11.8]} 25... Qc4 {[%clk 0:00:22.6]} 26. Rc1 {[%clk 0:00:02.9]} 26... exd4
{[%clk 0:00:20.7]} 27. Na2 {[%clk 0:00:02.7]} 27... Qxa2 {[%clk 0:00:17]} 0-1

[Event "Betsys MČR v online bleskovém šachu 2021"]
[Site "Chess.com"]
[Date "2021.04.17"]
[Round "4"]
[White "Saygram"]
[Black "Daffac"]
[Result "1-0"]
[WhiteElo "2404"]
[BlackElo "2100"]
[TimeControl "180+1"]
[EndTime "9:36:55 PDT"]
[Termination "Uživatel Saygram zvítězil po vzdání soupeře"]

1. e4 {[%clk 0:03:00.9]} 1... c6 {[%clk 0:03:00.1]} 2. d4 {[%clk 0:03:00.5]}
2... d5 {[%clk 0:03:00.3]} 3. exd5 {[%clk 0:03:01.2]} 3... cxd5 {[%clk
0:03:00.7]} 4. c4 {[%clk 0:03:01.7]} 4... Nf6 {[%clk 0:02:57.7]} 5. Nc3 {[%clk
0:03:02.1]} 5... Be6 {[%clk 0:02:50.2]} 6. c5 {[%clk 0:02:53.3]} 6... g6 {[%clk
0:02:49.1]} 7. Nf3 {[%clk 0:02:46.3]} 7... Bg7 {[%clk 0:02:49.4]} 8. Be2 {[%clk
0:02:46.1]} 8... O-O {[%clk 0:02:49.2]} 9. Be3 {[%clk 0:02:46.2]} 9... Nc6
{[%clk 0:02:45.8]} 10. O-O {[%clk 0:02:45.9]} 10... Bg4 {[%clk 0:02:45.3]} 11.
a3 {[%clk 0:02:44.7]} 11... Ne4 {[%clk 0:02:45.2]} 12. h3 {[%clk 0:02:38.8]}
12... Nxc3 {[%clk 0:02:28.1]} 13. bxc3 {[%clk 0:02:37.9]} 13... Bf5 {[%clk
0:02:29]} 14. Ra2 {[%clk 0:02:22.8]} 14... e5 {[%clk 0:02:27.5]} 15. Rb2 {[%clk
0:02:21.1]} 15... Qe7 {[%clk 0:02:18.5]} 16. Qb3 {[%clk 0:02:08]} 16... exd4
{[%clk 0:02:00.8]} 17. cxd4 {[%clk 0:02:04.6]} 17... Rab8 {[%clk 0:01:46.4]} 18.
Qxd5 {[%clk 0:02:01.2]} 18... Be4 {[%clk 0:01:42.3]} 19. Qc4 {[%clk 0:01:59.2]}
19... Rfd8 {[%clk 0:01:35.2]} 20. Rd1 {[%clk 0:01:58]} 20... Bd5 {[%clk
0:01:31.8]} 21. Qa4 {[%clk 0:01:47.2]} 21... Qe4 {[%clk 0:01:23.1]} 22. Qc2
{[%clk 0:01:35.9]} 22... Qe8 {[%clk 0:01:11.8]} 23. Bc4 {[%clk 0:00:36.8]} 23...
Bxf3 {[%clk 0:01:09.2]} 24. gxf3 {[%clk 0:00:37]} 24... Qd7 {[%clk 0:01:07.4]}
25. Bf1 {[%clk 0:00:19.3]} 25... Nxd4 {[%clk 0:01:02.3]} 26. Bxd4 {[%clk
0:00:19.2]} 26... Bxd4 {[%clk 0:01:02.3]} 27. Rb3 {[%clk 0:00:17.9]} 27... Qc7
{[%clk 0:00:59.2]} 28. Rbd3 {[%clk 0:00:08.3]} 28... Qg3+ {[%clk 0:00:38]} 29.
Bg2 {[%clk 0:00:07.9]} 29... Qf4 {[%clk 0:00:20.9]} 30. Qd2 {[%clk 0:00:07.6]}
30... Bf6 {[%clk 0:00:19]} 31. Qxf4 {[%clk 0:00:07]} 1-0

[Event "Betsys MČR v online bleskovém šachu 2021"]
[Site "Chess.com"]
[Date "2021.04.17"]
[Round "4"]
[White "Stalri"]
[Black "DiscoSTU666"]
[Result "1-0"]
[WhiteElo "2194"]
[BlackElo "1884"]
[TimeControl "180+1"]
[EndTime "9:36:55 PDT"]
[Termination "Uživatel Stalri zvítězil po vzdání soupeře"]

1. d4 {[%clk 0:03:00.9]} 1... Nf6 {[%clk 0:02:58.8]} 2. c4 {[%clk 0:03:01.3]}
2... g6 {[%clk 0:02:57.6]} 3. Nc3 {[%clk 0:03:01.7]} 3... Bg7 {[%clk 0:02:56.4]}
4. e4 {[%clk 0:03:01.9]} 4... O-O {[%clk 0:02:55.1]} 5. Nf3 {[%clk 0:03:02.4]}
5... d6 {[%clk 0:02:54.7]} 6. Be2 {[%clk 0:03:02.7]} 6... e5 {[%clk 0:02:52.4]}
7. Be3 {[%clk 0:03:03.1]} 7... Ng4 {[%clk 0:02:50.9]} 8. Bg5 {[%clk 0:03:02.7]}
8... f6 {[%clk 0:02:51]} 9. Bh4 {[%clk 0:03:03]} 9... Nh6 {[%clk 0:02:49]} 10.
dxe5 {[%clk 0:02:43.2]} 10... dxe5 {[%clk 0:02:44.6]} 11. Qc2 {[%clk 0:02:25.8]}
11... c6 {[%clk 0:02:12.5]} 12. Nd2 {[%clk 0:02:23]} 12... Nf7 {[%clk
0:02:08.1]} 13. O-O-O {[%clk 0:02:22.3]} 13... Be6 {[%clk 0:02:04.2]} 14. f3
{[%clk 0:02:17.2]} 14... Nd7 {[%clk 0:01:58.2]} 15. g4 {[%clk 0:02:10.7]} 15...
a6 {[%clk 0:01:49.3]} 16. Bf2 {[%clk 0:02:07.7]} 16... b5 {[%clk 0:01:47]} 17.
Kb1 {[%clk 0:01:18.9]} 17... Qa5 {[%clk 0:01:27.6]} 18. c5 {[%clk 0:01:00.4]}
18... Qc7 {[%clk 0:01:01.5]} 19. b4 {[%clk 0:00:27.1]} 19... a5 {[%clk
0:00:56.7]} 20. a3 {[%clk 0:00:27.4]} 20... axb4 {[%clk 0:00:49.3]} 21. axb4
{[%clk 0:00:28.3]} 21... Ra3 {[%clk 0:00:49.1]} 22. Qb2 {[%clk 0:00:20.2]} 22...
Rfa8 {[%clk 0:00:44]} 23. Kc2 {[%clk 0:00:19.8]} 23... Qa7 {[%clk 0:00:26.3]}
24. Bxb5 {[%clk 0:00:17.7]} 24... Rxc3+ {[%clk 0:00:23.6]} 25. Kxc3 {[%clk
0:00:16.9]} 25... cxb5 {[%clk 0:00:23.4]} 26. Ra1 {[%clk 0:00:17.4]} 26... Qb7
{[%clk 0:00:21.8]} 27. Rxa8+ {[%clk 0:00:17.1]} 27... Qxa8 {[%clk 0:00:20.2]}
28. Ra1 {[%clk 0:00:18]} 28... Qc6 {[%clk 0:00:18.7]} 29. Qa3 {[%clk 0:00:17]}
29... h6 {[%clk 0:00:15.2]} 30. Qa8+ {[%clk 0:00:16.7]} 30... Qxa8 {[%clk
0:00:15.2]} 31. Rxa8+ {[%clk 0:00:17.6]} 31... Kh7 {[%clk 0:00:15.4]} 32. c6
{[%clk 0:00:17]} 32... Nb6 {[%clk 0:00:14.1]} 33. Bxb6 {[%clk 0:00:16.5]} 1-0

[Event "Betsys MČR v online bleskovém šachu 2021"]
[Site "Chess.com"]
[Date "2021.04.17"]
[Round "4"]
[White "Devasales"]
[Black "Vitana"]
[Result "1-0"]
[WhiteElo "1842"]
[BlackElo "1864"]
[TimeControl "180+1"]
[EndTime "9:36:55 PDT"]
[Termination "Uživatel Devasales zvítězil po vzdání soupeře"]

1. e4 {[%clk 0:03:00.9]} 1... e6 {[%clk 0:02:59.2]} 2. d4 {[%clk 0:03:00]} 2...
d5 {[%clk 0:02:59.3]} 3. e5 {[%clk 0:02:59.7]} 3... c5 {[%clk 0:02:59.2]} 4. c3
{[%clk 0:02:59.1]} 4... Nc6 {[%clk 0:02:59.7]} 5. Nf3 {[%clk 0:02:58.3]} 5...
Bd7 {[%clk 0:03:00.2]} 6. b3 {[%clk 0:02:52.5]} 6... Qb6 {[%clk 0:03:00.3]} 7.
Bb2 {[%clk 0:02:51.7]} 7... Rc8 {[%clk 0:02:59.6]} 8. Be2 {[%clk 0:02:50.6]}
8... Nge7 {[%clk 0:02:59.4]} 9. O-O {[%clk 0:02:49.8]} 9... cxd4 {[%clk
0:02:58.3]} 10. cxd4 {[%clk 0:02:49]} 10... Nf5 {[%clk 0:02:58.3]} 11. g4 {[%clk
0:02:39.7]} 11... Nh6 {[%clk 0:02:56.9]} 12. h3 {[%clk 0:02:36.9]} 12... Be7
{[%clk 0:02:55.6]} 13. Nc3 {[%clk 0:02:35.1]} 13... O-O {[%clk 0:02:53.1]} 14.
Rc1 {[%clk 0:02:20.6]} 14... f5 {[%clk 0:02:48.4]} 15. g5 {[%clk 0:02:17.7]}
15... Nf7 {[%clk 0:02:47]} 16. h4 {[%clk 0:02:15.1]} 16... Rc7 {[%clk 0:02:42]}
17. Na4 {[%clk 0:02:10.8]} 17... Qa5 {[%clk 0:02:36.5]} 18. Bc3 {[%clk
0:02:04.7]} 18... Nb4 {[%clk 0:02:35.8]} 19. a3 {[%clk 0:02:03.3]} 19... Bxa4
{[%clk 0:02:33.2]} 20. axb4 {[%clk 0:01:59.9]} 20... Bxb4 {[%clk 0:02:30.6]} 21.
Bxb4 {[%clk 0:01:59.1]} 21... Rxc1 {[%clk 0:02:28.7]} 22. Bxa5 {[%clk
0:01:56.6]} 22... Rxd1 {[%clk 0:02:27.8]} 23. Rxd1 {[%clk 0:01:55.7]} 23... Bxb3
{[%clk 0:02:24.1]} 24. Rb1 {[%clk 0:01:55]} 24... Bc2 {[%clk 0:02:15.3]} 25.
Rxb7 {[%clk 0:01:53.3]} 25... Rc8 {[%clk 0:02:14.2]} 26. Rxa7 {[%clk 0:01:46.9]}
26... Be4 {[%clk 0:02:12.4]} 27. Nd2 {[%clk 0:01:38]} 27... Rc1+ {[%clk
0:02:08.8]} 28. Kh2 {[%clk 0:01:35.5]} 28... Rh1+ {[%clk 0:02:07.8]} 29. Kg3
{[%clk 0:01:34.8]} 29... Rg1+ {[%clk 0:02:07.1]} 30. Kf4 {[%clk 0:01:31.1]}
30... g6 {[%clk 0:02:00.8]} 31. Bb4 {[%clk 0:01:18.2]} 31... Rh1 {[%clk
0:01:57.3]} 32. Ra8+ {[%clk 0:01:16.3]} 32... Kg7 {[%clk 0:01:56.6]} 33. Bf8+
{[%clk 0:01:14.8]} 33... Kg8 {[%clk 0:01:55.6]} 34. Bh6+ {[%clk 0:01:14]} 34...
Nd8 {[%clk 0:01:55.1]} 35. Rxd8+ {[%clk 0:01:12.9]} 35... Kf7 {[%clk 0:01:55.6]}
36. Nf3 {[%clk 0:01:00.4]} 36... Ra1 {[%clk 0:01:42.7]} 37. Rd7+ {[%clk
0:00:56.6]} 37... Ke8 {[%clk 0:01:41.7]} 38. Rxh7 {[%clk 0:00:55.1]} 38... Ra2
{[%clk 0:01:41.4]} 39. Bb5+ {[%clk 0:00:49.6]} 39... Kd8 {[%clk 0:01:39.8]} 40.
Kg3 {[%clk 0:00:27.7]} 40... Ra3 {[%clk 0:01:36]} 41. Be2 {[%clk 0:00:26.6]}
41... Ra2 {[%clk 0:01:31.4]} 42. Bd1 {[%clk 0:00:26.1]} 42... Ra1 {[%clk
0:01:30]} 43. Be2 {[%clk 0:00:25.3]} 43... Ra2 {[%clk 0:01:29.9]} 44. Bf1 {[%clk
0:00:25.3]} 44... Ra3 {[%clk 0:01:25.3]} 45. Bg2 {[%clk 0:00:25.4]} 45... Rd3
{[%clk 0:01:22.1]} 46. Bf8 {[%clk 0:00:23.9]} 46... Ke8 {[%clk 0:01:20.8]} 47.
Bc5 {[%clk 0:00:23]} 47... Rb3 {[%clk 0:01:15]} 48. Re7+ {[%clk 0:00:22.3]}
48... Kf8 {[%clk 0:01:14.2]} 49. Rxe6+ {[%clk 0:00:22.5]} 49... Kf7 {[%clk
0:01:14.6]} 50. Rf6+ {[%clk 0:00:22.2]} 50... Kg7 {[%clk 0:01:14.6]} 51. e6
{[%clk 0:00:22]} 51... Rb8 {[%clk 0:01:09.1]} 52. e7 {[%clk 0:00:21.3]} 52...
Re8 {[%clk 0:01:08.6]} 53. Rf8 {[%clk 0:00:21.3]} 53... f4+ {[%clk 0:01:06.4]}
54. Kh2 {[%clk 0:00:20.1]} 54... Rxe7 {[%clk 0:01:00.8]} 1-0

[Event "Betsys MČR v online bleskovém šachu 2021"]
[Site "Chess.com"]
[Date "2021.04.17"]
[Round "4"]
[White "tucnak64"]
[Black "RousekJan"]
[Result "1-0"]
[WhiteElo "2104"]
[BlackElo "1790"]
[TimeControl "180+1"]
[EndTime "9:36:56 PDT"]
[Termination "Uživatel tucnak64 zvítězil na čas"]

1. e4 {[%clk 0:03:00.9]} 1... c5 {[%clk 0:02:58.8]} 2. Nf3 {[%clk 0:03:00.4]}
2... e6 {[%clk 0:02:54.2]} 3. d3 {[%clk 0:03:00]} 3... Nc6 {[%clk 0:02:53.3]} 4.
g3 {[%clk 0:02:59.3]} 4... Nf6 {[%clk 0:02:53.6]} 5. Bg2 {[%clk 0:02:57.6]} 5...
Be7 {[%clk 0:02:54.1]} 6. O-O {[%clk 0:02:56.3]} 6... O-O {[%clk 0:02:54.6]} 7.
c3 {[%clk 0:02:56.4]} 7... d5 {[%clk 0:02:54.9]} 8. e5 {[%clk 0:02:55.3]} 8...
Nd7 {[%clk 0:02:54.9]} 9. Re1 {[%clk 0:02:55.1]} 9... f6 {[%clk 0:02:51.4]} 10.
d4 {[%clk 0:02:50.6]} 10... cxd4 {[%clk 0:02:45.1]} 11. cxd4 {[%clk 0:02:48.9]}
11... fxe5 {[%clk 0:02:45.1]} 12. dxe5 {[%clk 0:02:46.7]} 12... Qc7 {[%clk
0:02:36.9]} 13. Bf4 {[%clk 0:02:44.2]} 13... Nb6 {[%clk 0:02:33.2]} 14. Nc3
{[%clk 0:02:23.6]} 14... Bb4 {[%clk 0:02:26.6]} 15. Rc1 {[%clk 0:02:20.3]} 15...
d4 {[%clk 0:02:06.6]} 16. Nxd4 {[%clk 0:02:17.2]} 16... Rd8 {[%clk 0:02:06.4]}
17. Ndb5 {[%clk 0:02:16.1]} 17... Rxd1 {[%clk 0:01:37.7]} 18. Nxc7 {[%clk
0:02:14.5]} 18... Rxe1+ {[%clk 0:01:38.2]} 19. Rxe1 {[%clk 0:02:13]} 19... Rb8
{[%clk 0:01:39.1]} 20. Rd1 {[%clk 0:01:59.6]} 20... Na8 {[%clk 0:01:08.9]} 21.
N7b5 {[%clk 0:01:55.3]} 21... a6 {[%clk 0:01:08]} 22. Nd6 {[%clk 0:01:55.3]}
22... Bxd6 {[%clk 0:01:07.7]} 23. exd6 {[%clk 0:01:55]} 23... Bd7 {[%clk
0:01:06.3]} 24. Ne4 {[%clk 0:01:50.9]} 24... b6 {[%clk 0:00:58.1]} 25. a3 {[%clk
0:01:40.4]} 25... Rc8 {[%clk 0:00:55.1]} 26. Be3 {[%clk 0:01:38.7]} 26... b5
{[%clk 0:00:54.7]} 27. Nc5 {[%clk 0:01:37]} 27... Nb6 {[%clk 0:00:35.3]} 28.
Nxa6 {[%clk 0:01:35.4]} 28... Nc4 {[%clk 0:00:35.7]} 29. Nc5 {[%clk 0:01:28.7]}
29... Nb8 {[%clk 0:00:17.7]} 30. Nxd7 {[%clk 0:01:18.2]} 30... Nxd7 {[%clk
0:00:18.6]} 31. Bd4 {[%clk 0:01:17.9]} 31... e5 {[%clk 0:00:17.2]} 32. Bc3
{[%clk 0:01:17.8]} 32... Kf8 {[%clk 0:00:13.3]} 33. Rd5 {[%clk 0:01:15.7]} 33...
Rb8 {[%clk 0:00:12.2]} 34. Bh3 {[%clk 0:01:14.6]} 34... Ke8 {[%clk 0:00:11.9]}
35. Kg2 {[%clk 0:01:04.5]} 35... e4 {[%clk 0:00:11.3]} 36. Rd4 {[%clk 0:00:59]}
36... e3 {[%clk 0:00:10.7]} 37. Re4+ {[%clk 0:00:58.9]} 37... Kf7 {[%clk
0:00:09.1]} 38. Bxd7 {[%clk 0:00:56]} 38... Rd8 {[%clk 0:00:03.1]} 39. Be6+
{[%clk 0:00:55.8]} 39... Kf8 {[%clk 0:00:02]} 40. d7 {[%clk 0:00:51.5]} 40...
Nd6 {[%clk 0:00:01.8]} 41. Rf4+ {[%clk 0:00:50.4]} 41... Ke7 {[%clk 0:00:01.7]}
42. Bh3 {[%clk 0:00:49.2]} 1-0